Cogmind - Beta 16 @@@ ROGUE MODE // 2025.11.09 @ 22:35:37 Player: opdo Result: Core destroyed Performance ------------- Evolutions (0) 0 Regions Visited (2) 400 Robots Destroyed (23) 115 Value Destroyed (442) 442 Prototype IDs (2) 40 Alien Tech Used (0) 0 Bonus (0) 0 TOTAL SCORE: 997 Bonus ------- None Cogmind --------- Core Integrity 0/250 Matter 300/300 Energy 100/100 System Corruption 7% Temperature Cool (0) Movement Core (450) Ox8 Location -10/Subcaves Parts ------- > --- POWER (1) -------- Ion Engine > --- PROPULSION (2) --- Light Treads Light Treads > --- UTILITY (2) ------ Scrap Shield > --- WEAPON (2) ------- Small Laser Particle Gun > --- INVENTORY (5) ---- Makeshift Flight Unit Seismic Detector Light Assault Rifle Welding Torch Piercing Trap Peak State ------------ > --- POWER ------------ Ion Engine > --- PROPULSION ------- Light Treads Light Treads > --- UTILITY ---------- Scrap Shield > --- WEAPON ----------- Small Laser Particle Gun > --- INVENTORY -------- Makeshift Flight Unit Seismic Detector Light Assault Rifle Welding Torch [Rating: 10] Favorites ----------- Power Light Ion Engine Engine Light Ion Engine Propulsion Light Treads Treads Light Treads Utility Small Storage Unit Storage Small Storage Unit Protection Scrap Shield Weapon Small Laser Energy Gun Small Laser Ballistic Gun Assault Rifle Special Weapon Welding Torch Build | -11 -10 -10 ------- Run | Yrd Mat Sub Slots Evolved . | . . . Power . | . . . Propulsion . | . . . Utility . | . . . Weapon . | . . . Parts Attached 14 | 7 2 5 Power 2 | 1 . 1 Engine 2 | 1 . 1 Core . | . . . Reactor . | . . . Propulsion 3 | 2 . 1 Treads 3 | 2 . 1 Leg . | . . . Wheel . | . . . Hover . | . . . Flight . | . . . Utility 4 | 1 2 1 Device . | . . . Storage 2 | 1 1 . Processor . | . . . Hackware . | . . . Protection 2 | . 1 1 Artifact . | . . . Weapon 5 | 3 . 2 Energy Gun 3 | 2 . 1 Energy Cannon . | . . . Ballistic Gun 1 | 1 . . Ballistic Cannon . | . . . Launcher . | . . . Special Weapon 1 | . . 1 Impact Weapon . | . . . Slashing Weapon . | . . . Piercing Weapon . | . . . Special Melee Weapon . | . . . Unidentified Prototypes . | . . . Parts Lost 2 | . . 2 Power 1 | . . 1 Propulsion 1 | . . 1 Utility . | . . . Weapon . | . . . Highest Loss Streak 1 | . . 1 To Critical Strikes . | . . . Average Backups 8 | 1 9 8 Power . | . 1 . Propulsion 2 | 1 3 2 Utility 1 | . 1 1 Weapon 2 | . 2 2 Tool/Special . | . . . Unused Backups 11 | . . 11 Power . | . . . Propulsion 5 | . . 5 Utility 2 | . . 2 Weapon 4 | . . 4 Tool/Special . | . . . Average Slot Usage (%) 91 | . 93 87 Engine 13 | . 14 11 Treads 27 | . 28 27 Storage 14 | . 20 5 Protection 6 | . 1 14 Energy Gun 26 | . 28 25 Special Weapon 1 | . . 2 Peak Build Rating 10 | 6 8 10 Average Rating 7 | 4 7 9 On Entrance 4 | . 6 8 Avg Prop Armor Cover (%) . | . . . Naked Turns . | . . . Heaviest Build 30 | 10 30 28 Greatest Support 40 | 40 40 40 Greatest Overweight (x) 1 | . . 1 Average Overweight (x) . | . . . Largest Inventory Capacity 15 | 8 15 15 Average Capacity 10 | 7 12 8 Most Carried 15 | 4 14 15 Average Carried 8 | 1 9 8 Final Capacity 15 | 8 15 5 Final Carried 14 | 4 14 5 Class Distribution -------------------- 100% | Mutant Dominant Class ---------------- Mutant | -10/Materials Mutant | -10/Subcaves Resources | -11 -10 -10 ----------- Run | Yrd Mat Sub Matter Collected 335 | 157 133 45 Remotely . | . . . Salvage Created 789 | 3 683 103 Parts 37 | 2 32 3 Haulers Intercepted 2 | . 2 . Recyclers Shooed . | . . . Parts Field Recycled . | . . . Retrieved Matter . | . . . Parts Self-Destructed 2 | . . 2 Prevented . | . . . Parts Restored . | . . . Kills | -11 -10 -10 ------- Run | Yrd Mat Sub Combat Hostiles Destroyed 15 | . 12 3 Guns 15 | . 12 3 Classes Destroyed 9 | 1 7 1 Worker 1 | . 1 . Builder 1 | . 1 . Tunneler 1 | 1 . . Hauler 2 | . 2 . Recycler 2 | . 2 . Watcher 1 | . 1 . Swarmer 6 | . 6 . Grunt 6 | . 6 . Subdweller 3 | . . 3 Best Kill Streak 3 | 1 3 2 Combat Bots Only 3 | . 3 2 Max Kills in Single Turn 1 | 1 1 1 Gunslinging . | . . . Exploded . | . . . Melee . | . . . Uniques/NPCs Destroyed . | . . . Combat | -11 -10 -10 -------- Run | Yrd Mat Sub Hostile Shots Fired 79 | . 59 20 Missed 27 | . 21 6 Hits 52 | . 38 14 Projectile 52 | . 38 14 Critical Strikes 2 | . 1 1 Damage Taken 769 | . 372 397 Core 252 | . 91 161 Absorbed by Shields . | . . . Redirected to Shielding 7 | . . 7 Core Remaining (%) 100 | 100 . . Volleys Fired 82 | . 56 26 Largest 2 | . 2 2 Hottest 105 | . 80 105 Shots Fired 160 | . 112 48 Gun 154 | . 112 42 Cannon . | . . . Launcher . | . . . Special 6 | . . 6 Kinetic . | . . . Thermal 160 | . 112 48 Explosive . | . . . Electromagnetic . | . . . Robot Hit Streak 14 | . 14 13 Robot Miss Streak 4 | . 4 2 Penetration Max . | . . . Secondary Targets 1 | . 1 . Max Gunslinging Chain 1 | . 1 . Shots Hit Robots 93 | . 72 21 Core Hits 38 | . 32 6 Critical Kills . | . . . Critical Parts Destroyed . | . . . Critical Strikes 1 | . . 1 Burn 1 | . . 1 Melee Attacks . | . . . Impact . | . . . Slashing . | . . . Piercing . | . . . Sneak Attacks . | . . . Combat Hostiles . | . . . Follow-up Attacks . | . . . Damage Inflicted 1146 | 6 815 325 Guns 1087 | . 810 277 Cannons . | . . . Explosions . | . . . Melee . | . . . Ramming 59 | 6 5 48 Kinetic . | . . . Thermal 1087 | . 810 277 Explosive . | . . . Electromagnetic . | . . . Impact . | . . . Slashing . | . . . Piercing . | . . . Highest Corruption 7 | . . 7 Average Corruption 4 | . . 4 Corruption Purged . | . . . Corruption Blocked . | . . . Overload Shots . | . . . Overflow Damage . | . . . Projectiles . | . . . Explosions . | . . . Melee . | . . . Knockbacks 2 | 1 1 . Impact 2 | 1 1 . Kinetic . | . . . Secondary . | . . . Self-Inflicted Damage 48 | . . 48 Shots . | . . . Rammed 1 | . 1 . Targets Rammed 2 | 1 1 . Kicked . | . . . Crushed 1 | 1 . . Highest Temperature 174 | . 174 2 Average Temperature 53 | . 53 1 Received Heat Transfer 243 | . 156 87 Siege Activations . | . . . Martial Activations . | . . . Shielding Activations . | . . . Robots Disrupted . | . . . Combat Hostiles . | . . . Robots Corrupted . | . . . Combat Hostiles . | . . . Parts Fried . | . . . Impact Corruptions . | . . . Robots Melted . | . . . Combat Hostiles . | . . . Parts Melted 9 | . 6 3 Heat Transferred 2556 | . 1825 731 Parts Sabotaged . | . . . Parts Stolen . | . . . Parts Stripped . | . . . Power Chain Reactions . | . . . Alert | -11 -10 -10 ------- Run | Yrd Mat Sub Maximum Alert Level . | . . . Low Security (%) 100 | 100 100 . Level 1 . | . . . Level 2 . | . . . Level 3 . | . . . Level 4 . | . . . Level 5 . | . . . High Security . | . . . Max Security . | . . . Peak Influence 115 | 5 115 . Initial 3 | . 3 . Average 38 | . 41 . Influence Increases 401 | 5 396 . Destroy 0b10 Robot/C 240 | . 240 . Destroy 0b10 Robot/NC 40 | 5 35 . Destroy Leader 66 | . 66 . Successful Hack 55 | . 55 . Influence Decreases 401 | . 356 45 Entered New Map 24 | . 2 22 Time Decay 377 | . 354 23 Squads Dispatched 3 | . 3 . Investigation 2 | . 2 . Extermination . | . . . Reinforcement 1 | . 1 . Assault . | . . . Garrison . | . . . Intercept . | . . . Searches Triggered . | . . . Construction Impeded . | . . . Haulers Reinforced . | . . . Active Scanning Responses . | . . . Cargo Convoy Interrupts . | . . . Stealth | -11 -10 -10 --------- Run | Yrd Mat Sub Distress Signals 2 | . 2 . Communications Jammed . | . . . Distress Signals . | . . . Times Spotted 24 | . 21 3 Peak Tracking Total 4 | . 4 2 Tactical Retreats . | . . . Traps | -11 -10 -10 ------- Run | Yrd Mat Sub Traps Triggered 2 | . 2 . Indirectly . | . . . Trap Hack Attempts . | . . . Triggered . | . . . Disarmed . | . . . Reprogrammed . | . . . Reused . | . . . Traps Extracted . | . . . Installed . | . . . Triggered . | . . . Most Traps Carried 1 | . . 1 Machines | -11 -10 -10 ---------- Run | Yrd Mat Sub Machines Disabled . | . . . Max in Single Turn . | . . . Machines Repaired . | . . . Machines Dismantled . | . . . Machines Sabotaged . | . . . Overloaded Fab Kills . | . . . Hacking | -11 -10 -10 --------- Run | Yrd Mat Sub Machines Accessed 7 | . 7 . Terminals 7 | . 7 . Fabricators . | . . . Repair Stations . | . . . Recycling Units . | . . . Scanalyzers . | . . . Garrison Access . | . . . Total Hacks 30 | . 30 . Successful 16 | . 16 . Failed 14 | . 14 . Catastrophic 1 | . 1 . Database Lockouts . | . . . Manual 21 | . 21 . Terminals 30 | . 30 . Fabricators . | . . . Repair Stations . | . . . Recycling Units . | . . . Scanalyzers . | . . . Garrison Access . | . . . Terminal Hacks 8 | . 8 . Robot Analysis 3 | . 3 . Prototype ID Bank 1 | . 1 . Terminal Index 1 | . 1 . Locate Traps 1 | . 1 . Registered Components 1 | . 1 . Zone Layout 1 | . 1 . Fabricator Hacks . | . . . Repair Station Hacks . | . . . Recycling Unit Hacks . | . . . Scanalyzer . | . . . Garrison Access Hacks . | . . . Unauthorized Hacks 8 | . 8 . Terminals 8 | . 8 . Botnet 1 | . 1 . Operators 1 | . 1 . Skim 6 | . 6 . Fabricators . | . . . Repair Stations . | . . . Recycling Units . | . . . Scanalyzers . | . . . Garrison Access . | . . . Data Cores Recovered . | . . . Used . | . . . Hacking Detections 7 | . 7 . Full Trace Events . | . . . Feedback Events . | . . . Feedback Blocked . | . . . Robot Schematics Acquired . | . . . Robots Built . | . . . Authchips . | . . . Time . | . . . Total Robot Build Rating . | . . . Part Schematics Acquired . | . . . Parts Built . | . . . Authchips . | . . . Time . | . . . Total Part Build Rating . | . . . Part Studies Acquired . | . . . Parts Repaired . | . . . Time . | . . . Parts Recycled . | . . . Recycled Matter . | . . . Retrieved Matter . | . . . Retrieved Components . | . . . Parts Scanalyzed . | . . . Part Schematics Acquired . | . . . Parts Damaged . | . . . Bothacking | -11 -10 -10 ------------ Run | Yrd Mat Sub Used RIF Installer . | . . . Robots Hacked . | . . . Non-combat . | . . . Combat . | . . . Robot Hacks Applied . | . . . Relay Couplers Released . | . . . Fabnet Peak Effective % . | . . . Robots Rewired . | . . . Allies Hacked . | . . . Hacks Repelled . | . . . Allies | -11 -10 -10 -------- Run | Yrd Mat Sub Total Allies . | . . . Largest Group . | . . . Highest-Rated Group . | . . . Highest-Rated Ally . | . . . Total Orders . | . . . Ally Attacks . | . . . Total Damage . | . . . Kills . | . . . Allies Corrupted . | . . . Allies Melted . | . . . Intel | -11 -10 -10 ------- Run | Yrd Mat Sub Active Infowar (turns) . | . . . Robot Analysis Total 3 | . 3 . Derelict Logs Recovered . | . . . Drone Launches . | . . . Drone Recoveries . | . . . Exploration | -11 -10 -10 ------------- Run | Yrd Mat Sub Turns Passed 1969 | 78 1104 787 Spaces Moved 1004 | 41 564 399 Core 2 | 2 . . Treads 1002 | 39 564 399 Legs . | . . . Wheels . | . . . Hover . | . . . Flight . | . . . Fastest Speed 50 | 50 160 160 Average Speed 161 | 154 160 163 Slowest Speed 240 | 160 160 240 Overloaded Moves . | . . . Propulsion Burnouts . | . . . Robots Hopped . | . . . Potential Cave-ins . | . . . Cave-ins Triggered . | . . . Exploration Rate (%) 28 | 4 72 10 Regions Visited 2 Branch Regions 1 Pre-discovered Areas 1 | . 1 . Known Exits Taken 1 | . 1 . Unknown Exits Taken 1 | 1 . . Scrap Searched 1 | . . 1 Spaces Dug . | . . . Terrain Destroyed . | . . . Melee . | . . . Projectile . | . . . AOE . | . . . Terrain Rammed 15 | . . 15 Walls Destroyed . | . . . Machines Disabled . | . . . Actions | -11 -10 -10 --------- Run | Yrd Mat Sub Total 1152 | 52 652 448 Wait 20 | . 20 . Move 1002 | 40 563 399 Hop . | . . . Pick Up 16 | 4 10 2 Fast Attach 9 | 6 1 2 Attach 1 | . . 1 Detach . | . . . Swap 4 | 1 1 2 Drop 2 | . . 2 Fire 82 | . 56 26 Melee . | . . . Ram 14 | . . 14 Kick . | . . . Crush 2 | 1 1 . Escape Stasis . | . . . Rewire . | . . . Trap . | . . . Miscellaneous . | . . . Route ------- -11/Scrapyard -10/Materials (discovered 5 exits: *Mat x3 / *Min / *Sub) -10/Subcaves (discovered 2 exits: Mat x2) History --------- Turn | Location | Event 23 | -11/Scrapyard | Discovered new exit (range 15) 79 | -11/Scrapyard | Entered Materials 252 | -10/Materials | Discovered new exit (range 12) 308 | -10/Materials | Build established: Mutant 567 | -10/Materials | Discovered new exit (range 13) 826 | -10/Materials | Discovered new exit (range 8) 901 | -10/Materials | Discovered new exit (range 10) 923 | -10/Materials | Identified exit to Materials 923 | -10/Materials | Identified exit to Subcaves 923 | -10/Materials | Identified exit to Mines 1030 | -10/Materials | Learned location of 1 exit from Recycling 1114 | -10/Materials | Learned location of Storage (-8) 1183 | -10/Materials | Entered Subcaves 1184 | -10/Subcaves | Approached by a straggling Scientist 1184 | -10/Subcaves | Identified exit to Materials 1222 | -10/Subcaves | A swath of the cavern ceiling suddenly collapsed 1227 | -10/Subcaves | Shifting Twisted Machinery released Mak. Flight Unit 1389 | -10/Subcaves | Core integrity fell below 50% 1420 | -10/Subcaves | Disturbed a concealed Subdweller 1924 | -10/Subcaves | Core integrity fell below 20% 1970 | -10/Subcaves | Core destroyed Last Messages --------------- 01943_ Slammed into Twisted Machinery. 01943_ Destabilizing: System corrupted (+1). 01947_ Slammed into Twisted Machinery. 01947_ Destabilizing: Core damaged (-2). KI-2WL(c): "I think it's somewhere northeast of here" 01952_ Slammed into Twisted Machinery. 01952_ Destabilizing: Core damaged (-7). 01952_ Destabilizing: System corrupted (+2). 01956_ Slammed into Twisted Machinery. 01956_ Destabilizing: System corrupted (+2). 01961_ Slammed into Twisted Machinery. 01961_ Destabilizing: Core damaged (-5). 01965_ Slammed into Twisted Machinery. 01965_ Destabilizing: Core damaged (-2). 01965_ Destabilizing: System corrupted (+1). 01970_ Slammed into Twisted Machinery. 01970_ Destabilizing: Core damaged (-5). 01970_ Destabilizing: Core damaged (-12). Map ----- +----------------------------------------------------+ | ?????????????????????????????????????????????????? | | ?????????????????????????????????????????????????? | | ?????